fUSD/lending_fUSD_20250206
["ID","MTS","AMOUNT","RATE_DAILY","PERIOD"]
[351983121,1738867843570,-554.3,0.00016712,2]
[351983123,1738867843579,-500.0,0.00016712,2]
[351983125,1738867843589,-500.0,0.00016712,2]
[351983127,1738867843598,-500.0,0.00016712,2]
[351983129,1738867843607,-500.0,0.00016712,2]
[351983132,1738867843617,-807.7,0.00016712,2]
[351983134,1738867843627,-500.0,0.00016712,2]
[351983136,1738867843636,-500.0,0.00016712,2]
[351983137,1738867843647,-902.38,0.00016712,2]
[351983140,1738867843656,-500.0,0.00016712,2]
[351983141,1738867843667,-500.0,0.00016712,2]
[351983143,1738867843677,-500.0,0.00016712,2]
[351983146,1738867843687,-500.0,0.00016712,2]
[351983148,1738867843697,-543.18,0.00016712,2]
[351983150,1738867843707,-500.0,0.00016712,2]
[351983152,1738867843716,-500.0,0.00016712,2]
[351983154,1738867843725,-500.0,0.00016712,2]
[351983156,1738867843735,-500.0,0.00016712,2]
[351983158,1738867843746,-572.5,0.00016712,2]
[351983160,1738867843755,-295.54615937,0.00016712,2]
[351983162,1738867843766,-500.0,0.00016712,2]
[351983163,1738867843778,-500.0,0.00016712,2]
[351983165,1738867843787,-500.0,0.00016712,2]
[351983167,1738867843797,-500.0,0.00016712,2]
[351983170,1738867843807,-500.0,0.00016712,2]
[351983171,1738867843817,-847.5,0.00016712,2]
[351983173,1738867843826,-672.14,0.00016712,2]
[351983175,1738867843836,-500.0,0.00016712,2]
[351983177,1738867843846,-500.0,0.00016712,2]
[351983179,1738867843855,-500.0,0.00016712,2]
[351983181,1738867843865,-500.0,0.00016712,2]
[351983183,1738867843875,-500.0,0.00016712,2]
[351983186,1738867843885,-500.0,0.00016712,2]
[351983188,1738867843895,-500.0,0.00016712,2]
[351983190,1738867843904,-500.0,0.00016712,2]
[351983191,1738867843914,-500.0,0.00016712,2]
[351983193,1738867843923,-500.0,0.00016712,2]
[351983195,1738867843932,-826.95,0.00016712,2]
[351983197,1738867843942,-500.0,0.00016712,2]
[351983199,1738867843951,-908.0,0.00016712,2]
[351983201,1738867843960,-500.0,0.00016712,2]
[351983203,1738867843970,-500.0,0.00016712,2]
[351983205,1738867843980,-500.0,0.00016712,2]
[351983207,1738867843990,-500.0,0.00016712,2]
[351983209,1738867844000,-500.0,0.00016712,2]
[351983211,1738867844009,-500.0,0.00016712,2]
[351983214,1738867844019,-904.4,0.00016712,2]
[351983216,1738867844029,-500.0,0.00016712,2]
[351983218,1738867844038,-722.65,0.00016712,2]
[351983220,1738867844048,-1878.89,0.00016712,2]
[351983221,1738867844057,-500.0,0.00016712,2]
[351983224,1738867844067,-559.38,0.00016712,2]
[351983226,1738867844077,-500.0,0.00016712,2]
[351983227,1738867844086,-653.5,0.00016712,2]
[351983229,1738867844096,-500.0,0.00016712,2]
[351983231,1738867844106,-647.68,0.00016712,2]
[351983233,1738867844116,-500.0,0.00016712,2]
[351983235,1738867844127,-500.0,0.00016712,2]
[351983237,1738867844137,-500.0,0.00016712,2]
[351983239,1738867844147,-500.0,0.00016712,2]
[351983241,1738867844156,-757.82,0.00016712,2]
[351983243,1738867844165,-500.0,0.00016712,2]
[351983245,1738867844176,-1035.74,0.00016712,2]
[351983247,1738867844186,-500.0,0.00016712,2]
[351983249,1738867844195,-500.0,0.00016712,2]
[351983251,1738867844206,-500.0,0.00016712,2]
[351983253,1738867844216,-1369.64,0.00016712,2]
[351983255,1738867844225,-500.0,0.00016712,2]
[351983257,1738867844235,-775.72,0.00016712,2]
[351983259,1738867844244,-736.48,0.00016712,2]
[351983261,1738867844254,-864.0,0.00016712,2]
[351983263,1738867844264,-500.0,0.00016712,2]
[351983265,1738867844275,-1197.28,0.00016712,2]
[351983267,1738867844293,-1135.81,0.00016712,2]
[351983269,1738867844302,-500.0,0.00016712,2]
[351983271,1738867844311,-500.0,0.00016712,2]
[351983273,1738867844320,-600.58,0.00016712,2]
[351983275,1738867844330,-526.09,0.00016712,2]
[351983277,1738867844339,-500.0,0.00016712,2]
[351983279,1738867844348,-500.0,0.00016712,2]
[351983281,1738867844358,-500.0,0.00016712,2]
[351983283,1738867844367,-567.42,0.00016712,2]
[351983285,1738867844376,-514.34,0.00016712,2]
[351983287,1738867844386,-690.39,0.00016712,2]
[351983289,1738867844395,-1146.91,0.00016712,2]
[351983291,1738867844404,-578.84,0.00016712,2]
[351983293,1738867844413,-500.0,0.00016712,2]
[351983295,1738867844423,-590.56542692,0.00016712,2]
[351983297,1738867844432,-484.23654809,0.00016712,2]
[351983299,1738867844441,-500.0,0.00016712,2]
[351983301,1738867844451,-901.34,0.00016712,2]
[351983303,1738867844461,-734.86,0.00016712,2]
[351983305,1738867844470,-767.8,0.00016712,2]
[351983307,1738867844479,-500.0,0.00016712,2]
[351983308,1738867844488,-500.0,0.00016712,2]
[351983310,1738867844498,-500.0,0.00016712,2]
[351983312,1738867844507,-500.0,0.00016712,2]
[351983315,1738867844519,-599.31,0.00016712,2]
[351983317,1738867844529,-706.15,0.00016712,2]
[351983319,1738867844539,-1595.4,0.00016712,2]
[351983321,1738867844548,-500.0,0.00016712,2]
[351983323,1738867844558,-500.0,0.00016712,2]
[351983324,1738867844567,-562.03,0.00016712,2]
[351983326,1738867844577,-537.82,0.00016712,2]
[351983328,1738867844587,-764.68,0.00016712,2]
[351983331,1738867844597,-500.0,0.00016712,2]
[351983332,1738867844607,-2169.81,0.00016712,2]
[351983334,1738867844616,-2028.65,0.00016712,2]
[351983336,1738867844625,-500.0,0.00016712,2]
[351983338,1738867844635,-500.0,0.00016712,2]
[351983340,1738867844645,-724.86,0.00016712,2]
[351983342,1738867844654,-917.83,0.00016712,2]
[351983344,1738867844664,-339.10410526,0.00016712,2]
[351983346,1738867844674,-522.08737286,0.00016712,2]
[351983348,1738867844683,-1019.86,0.00016712,2]
[351983350,1738867844692,-1039.14,0.00016712,2]
[351983352,1738867844702,-954.62,0.00016712,2]
[351983354,1738867844712,-500.0,0.00016712,2]
[351983356,1738867844722,-1567.45,0.00016712,2]
[351983358,1738867844732,-931.49,0.00016712,2]
[351983360,1738867844741,-500.0,0.00016712,2]
[351983362,1738867844750,-500.0,0.00016712,2]
[351983364,1738867844761,-500.0,0.00016712,2]
[351983366,1738867844775,-500.0,0.00016712,2]
[351983368,1738867844785,-1053.66,0.00016712,2]
[351983370,1738867844796,-963.56,0.00016712,2]
[351983372,1738867844806,-1242.56,0.00016712,2]
[351983374,1738867844816,-783.88,0.00016712,2]
[351983376,1738867844826,-500.0,0.00016712,2]
[351983378,1738867844836,-788.64,0.00016712,2]
[351983380,1738867844848,-1118.0,0.00016712,2]
[351983382,1738867844857,-500.0,0.00016712,2]
[351983384,1738867844867,-517.64,0.00016712,2]
[351983386,1738867844877,-746.18,0.00016712,2]
[351983388,1738867844886,-536.31,0.00016712,2]
[351983394,1738867844943,-500.0,0.00016712,2]
[351983396,1738867844954,-500.0,0.00016712,2]
[351983398,1738867844963,-581.47,0.00016712,2]
[351983400,1738867844973,-615.1,0.00016712,2]
[351983402,1738867844982,-244.49291979,0.00016712,2]
[351983404,1738867844992,-3238.11,0.00016712,2]
[351983407,1738867845002,-1033.64,0.00016712,2]
[351983408,1738867845012,-825.6,0.00016712,2]
[351983410,1738867845024,-1473.97,0.00016712,2]
[351983412,1738867845034,-543.41346316,0.00016712,2]
[351983414,1738867845043,-547.15,0.00016712,2]
[351983416,1738867845053,-1199.51,0.00016712,2]
[351983418,1738867845063,-500.0,0.00016712,2]
[351983420,1738867845072,-500.0,0.00016712,2]
[351983422,1738867845082,-1581.33,0.00016712,2]
[351983425,1738867845092,-2018.68,0.00016712,2]
[351983427,1738867845102,-500.0,0.00016712,2]
[351983429,1738867845111,-500.0,0.00016712,2]
[351983431,1738867845121,-2039.23,0.00016712,2]
[351983432,1738867845133,-1529.26,0.00016712,2]
[351983434,1738867845143,-500.0,0.00016712,2]
[351983437,1738867845153,-492.34,0.00016712,2]
[351983438,1738867845162,-500.0,0.00016712,2]
[351983440,1738867845172,-1421.24,0.00016712,2]
[351983442,1738867845181,-899.5,0.00016712,2]
[351983444,1738867845191,-1045.4,0.00016712,2]
[351983446,1738867845202,-1066.46,0.00016712,2]
[351983448,1738867845212,-500.0,0.00016712,2]
[351983449,1738867845222,-500.0,0.00016712,2]
[351983450,1738867845232,-500.0,0.00016712,2]
[351983451,1738867845242,-881.11,0.00016712,2]
[351983453,1738867845252,-500.0,0.00016712,2]
[351983455,1738867845262,-2242.72,0.00016712,2]
[351983457,1738867845272,-500.0,0.00016712,2]
[351983459,1738867845288,-500.0,0.00016712,2]
[351983461,1738867845301,-500.0,0.00016712,2]
[351983463,1738867845315,-603.07,0.00016712,2]
[351983465,1738867845324,-852.06,0.00016712,2]
[351983467,1738867845334,-807.95,0.00016712,2]
[351983469,1738867845344,-500.0,0.00016712,2]
[351983471,1738867845354,-574.95,0.00016712,2]
[351983473,1738867845363,-1994.94,0.00016712,2]
[351983475,1738867845371,-500.0,0.00016712,2]
[351983477,1738867845380,-345.09,0.00016712,2]
[351983479,1738867845389,-500.0,0.00016712,2]
[351983482,1738867845399,-500.0,0.00016712,2]
[351983484,1738867845408,-1045.5,0.00016712,2]
[351983487,1738867845418,-770.13,0.00016712,2]
[351983489,1738867845427,-568.56,0.00016712,2]
[351983491,1738867845437,-500.0,0.00016712,2]
[351983493,1738867845446,-908.76,0.00016712,2]
[351983495,1738867845456,-1617.59,0.00016712,2]
[351983497,1738867845465,-500.0,0.00016712,2]
[351983499,1738867845474,-1114.4,0.00016712,2]
[351983501,1738867845483,-192.33,0.00016712,2]
[351983503,1738867845493,-500.0,0.00016712,2]
[351983505,1738867845502,-500.0,0.00016712,2]
[351983507,1738867845511,-762.98,0.00016712,2]
[351983509,1738867845520,-500.0,0.00016712,2]
[351983511,1738867845530,-518.5,0.00016712,2]
[351983513,1738867845540,-553.73,0.00016712,2]
[351983515,1738867845550,-903.53,0.00016712,2]
[351983517,1738867845560,-500.0,0.00016712,2]
[351983519,1738867845570,-1477.93,0.00016712,2]
[351983521,1738867845579,-4400.39346326,0.00016773,2]
[351983523,1738867845590,-632.98529406,0.00016797,2]
[351983525,1738867845600,-3295.27209255,0.0001684,2]
[351983527,1738867845610,-500.0,0.00016843,2]
[351983529,1738867845621,-500.0,0.00016843,2]
[351983531,1738867845630,-500.0,0.00016843,2]
[351983533,1738867845640,-932.66,0.00016843,2]
[351983535,1738867845650,-500.0,0.00016843,2]
[351983537,1738867845659,-717.11,0.00016843,2]
[351983539,1738867845668,-367.97,0.00016843,2]
[351983541,1738867845678,-561.46,0.00016844,2]
[351983543,1738867845687,-500.0,0.00016844,2]
[351983545,1738867845696,-500.0,0.00016844,2]
[351983547,1738867845706,-500.0,0.00016844,2]
[351983549,1738867845715,-638.99,0.00016844,2]
[351983551,1738867845725,-843.98,0.00016844,2]
[351983553,1738867845734,-656.15,0.00016844,2]
[351983555,1738867845743,-686.49,0.00016844,2]
[351983557,1738867845754,-500.0,0.00016844,2]
[351983559,1738867845763,-607.76,0.00016844,2]
[351983561,1738867845773,-500.0,0.00016844,2]
[351983563,1738867845783,-601.46,0.00016844,2]
[351983565,1738867845792,-500.0,0.00016844,2]
[351983567,1738867845802,-673.03,0.00016844,2]
[351983569,1738867845811,-649.99,0.00016844,2]
[351983571,1738867845821,-500.0,0.00016844,2]
[351983572,1738867845830,-627.95,0.00016844,2]
[351983574,1738867845840,-500.0,0.00016844,2]
[351983576,1738867845850,-850.37,0.00016844,2]
[351983578,1738867845859,-257.71,0.00016844,2]
[351983580,1738867845871,-500.0,0.00016844,2]
[351983582,1738867845880,-500.0,0.00016844,2]
[351983584,1738867845890,-517.41,0.00016844,2]
[351983586,1738867845899,-500.0,0.00016844,2]
[351983589,1738867845909,-556.84,0.00016844,2]
[351983590,1738867845919,-500.0,0.00016844,2]
[351983593,1738867845929,-369.02,0.00016844,2]
[351983594,1738867845938,-608.254,0.00016848,2]
[351983597,1738867845948,-500.0,0.00016848,2]
[351983598,1738867845957,-889.24,0.00016848,2]
[351983601,1738867845967,-500.0,0.00016848,2]
[351983602,1738867845976,-1376.12,0.00016848,2]
[351983604,1738867845986,-1350.96,0.00016848,2]
[351983607,1738867845996,-1057.77,0.00016848,2]
[351983608,1738867846006,-1205.55,0.00016848,2]
[351983610,1738867846016,-500.0,0.00016848,2]
[351983612,1738867846027,-1304.81,0.00016848,2]
[351983615,1738867846037,-3491.37,0.00016848,2]
[351983617,1738867846047,-1042.69,0.00016848,2]
[351983618,1738867846056,-1176.95,0.00016848,2]
[351983620,1738867846066,-827.43,0.00016848,2]
[351983622,1738867846075,-1058.21,0.00016848,2]
[351983624,1738867846084,-500.0,0.00016848,2]
[351983626,1738867846094,-861.36,0.00016848,2]
[351983628,1738867846104,-628.75,0.00016848,2]
[351983630,1738867846113,-1023.55,0.00016848,2]
[351983632,1738867846124,-1000.0,0.00016848,2]
[351983634,1738867846136,-810.56,0.00016848,2]
[351983636,1738867846146,-500.0,0.00016848,2]
[351983638,1738867846156,-500.0,0.00016849,2]
[351983640,1738867846166,-500.0,0.00016849,2]
[351983642,1738867846176,-500.0,0.00016849,2]
[351983644,1738867846185,-500.0,0.00016849,2]
[351983647,1738867846194,-500.0,0.00016849,2]
[351983649,1738867846204,-500.0,0.00016849,2]
[351983650,1738867846213,-500.0,0.00016849,2]
[351983652,1738867846223,-500.0,0.00016849,2]
[351983654,1738867846232,-500.0,0.00016849,2]
[351983656,1738867846242,-500.0,0.00016849,2]
[351983659,1738867846251,-517.65,0.00016849,2]
[351983660,1738867846261,-500.0,0.00016849,2]
[351983662,1738867846272,-500.0,0.00016849,2]
[351983665,1738867846282,-642.03,0.00016849,2]
[351983667,1738867846292,-500.0,0.00016849,2]
[351983669,1738867846304,-500.0,0.00016849,2]
[351983670,1738867846314,-331.92552731,0.00016849,2]
[351983672,1738867846323,-500.0,0.00016849,2]
[351983674,1738867846333,-500.0,0.00016849,2]
[351983676,1738867846343,-500.0,0.00016849,2]
[351983678,1738867846354,-500.0,0.00016849,2]
[351983680,1738867846364,-500.0,0.00016849,2]
[351983682,1738867846373,-512.4,0.00016849,2]
[351983684,1738867846382,-500.0,0.00016849,2]
[351983686,1738867846392,-500.0,0.00016849,2]
[351983688,1738867846402,-500.0,0.00016849,2]
[351983690,1738867846412,-500.0,0.00016849,2]
[351983692,1738867846422,-738.71,0.00016849,2]
[351983694,1738867846433,-500.0,0.00016849,2]
[351983696,1738867846443,-500.0,0.00016849,2]
[351983698,1738867846453,-500.0,0.00016849,2]
[351983700,1738867846463,-500.0,0.00016849,2]
[351983702,1738867846472,-500.0,0.00016849,2]
[351983704,1738867846482,-500.0,0.00016849,2]
[351983706,1738867846491,-318.39631237,0.00016849,2]
[351983708,1738867846500,-500.0,0.00016849,2]
[351983710,1738867846509,-164.74296781,0.00016849,2]
[351983712,1738867846518,-500.0,0.00016849,2]
[351983714,1738867846530,-513.02,0.00016849,2]
[351983716,1738867846539,-500.0,0.00016849,2]
[351983718,1738867846548,-500.0,0.00016849,2]
[351983720,1738867846558,-500.0,0.00016849,2]
[351983722,1738867846569,-500.0,0.00016849,2]
[351983724,1738867846579,-500.0,0.00016849,2]
[351983726,1738867846588,-933.14,0.00016849,2]
[351983728,1738867846598,-500.0,0.00016849,2]
[351983730,1738867846608,-500.0,0.00016849,2]
[351983732,1738867846618,-500.0,0.00016849,2]
[351983734,1738867846627,-500.0,0.00016849,2]
[351983737,1738867846636,-500.0,0.00016849,2]
[351983740,1738867846645,-500.0,0.00016849,2]
[351983743,1738867846654,-500.0,0.00016849,2]
[351983745,1738867846664,-500.0,0.00016849,2]
[351983747,1738867846675,-500.0,0.00016849,2]
[351983749,1738867846684,-500.0,0.00016849,2]
[351983751,1738867846694,-819.25,0.00016849,2]
[351983753,1738867846703,-500.0,0.00016849,2]
[351983755,1738867846713,-807.79,0.00016849,2]
[351983757,1738867846723,-703.22,0.00016849,2]
[351983759,1738867846735,-500.0,0.00016849,2]
[351983761,1738867846745,-766.23,0.00016849,2]
[351983763,1738867846754,-513.79,0.00016849,2]
[351983764,1738867846763,-500.0,0.00016849,2]
[351983766,1738867846772,-500.0,0.00016849,2]
[351983768,1738867846781,-500.0,0.00016849,2]
[351983770,1738867846791,-634.46,0.00016849,2]
[351983772,1738867846802,-500.0,0.00016849,2]
[351983774,1738867846811,-500.0,0.00016849,2]
[351983776,1738867846823,-500.0,0.00016849,2]
[351983778,1738867846833,-500.0,0.00016849,2]
[351983780,1738867846844,-500.0,0.00016849,2]
[351983782,1738867846855,-500.0,0.00016849,2]
[351983784,1738867846865,-500.0,0.00016849,2]
[351983786,1738867846875,-500.0,0.00016849,2]
[351983788,1738867846886,-500.0,0.00016849,2]
[351983790,1738867846896,-500.0,0.00016849,2]
[351983792,1738867846907,-500.0,0.00016849,2]
[351983794,1738867846919,-500.0,0.00016849,2]
[351983796,1738867846931,-516.25,0.00016849,2]
[351983798,1738867846941,-500.0,0.00016849,2]
[351983800,1738867846953,-500.0,0.00016849,2]
[351983802,1738867846963,-500.0,0.00016849,2]
[351983804,1738867846972,-500.0,0.00016849,2]
[351983806,1738867846981,-500.0,0.00016849,2]
[351983807,1738867846990,-518.89,0.00016849,2]
[351983809,1738867846999,-500.0,0.00016849,2]
[351983811,1738867847008,-500.0,0.00016849,2]
[351983813,1738867847016,-500.0,0.00016849,2]
[351983815,1738867847025,-500.0,0.00016849,2]
[351983817,1738867847034,-500.0,0.00016849,2]
[351983819,1738867847042,-690.07,0.00016849,2]
[351983821,1738867847051,-500.0,0.00016849,2]
[351983823,1738867847058,-500.0,0.00016849,2]
[351983825,1738867847067,-500.0,0.00016849,2]
[351983827,1738867847076,-500.0,0.00016849,2]
[351983829,1738867847086,-500.0,0.00016849,2]
[351983831,1738867847099,-500.0,0.00016849,2]
[351983833,1738867847110,-500.0,0.00016849,2]
[351983835,1738867847124,-500.0,0.00016849,2]
[351983837,1738867847144,-500.0,0.00016849,2]
[351983839,1738867847154,-587.86,0.00016849,2]
[351983841,1738867847163,-500.0,0.00016849,2]
[351983843,1738867847174,-500.0,0.00016849,2]
[351983844,1738867847184,-500.0,0.00016849,2]
[351983846,1738867847193,-598.72,0.00016849,2]
[351983848,1738867847203,-500.0,0.00016849,2]
[351983850,1738867847213,-500.0,0.00016849,2]
[351983852,1738867847222,-500.0,0.00016849,2]
[351983854,1738867847232,-500.0,0.00016849,2]
[351983856,1738867847242,-500.0,0.00016849,2]
[351983858,1738867847251,-500.0,0.00016849,2]
[351983860,1738867847260,-500.0,0.00016849,2]
[351983862,1738867847270,-500.0,0.00016849,2]
[351983864,1738867847279,-586.04,0.00016849,2]
[351983866,1738867847288,-1618.56,0.00016849,2]
[351983868,1738867847298,-210.358937,0.00016849,2]
[351983870,1738867847308,-500.0,0.00016849,2]
[351983872,1738867847317,-510.12,0.00016849,2]
[351983874,1738867847327,-500.0,0.00016849,2]
[351983876,1738867847336,-713.81,0.00016849,2]
[351983878,1738867847346,-500.0,0.00016849,2]
[351983880,1738867847355,-500.0,0.00016849,2]
[351983882,1738867847364,-500.0,0.00016849,2]
[351983884,1738867847374,-724.59,0.00016849,2]
[351983886,1738867847384,-500.0,0.00016849,2]
[351983888,1738867847393,-500.0,0.00016849,2]
[351983890,1738867847403,-500.0,0.00016849,2]
[351983892,1738867847412,-587.97,0.00016849,2]
[351983894,1738867847421,-520.11,0.00016849,2]
[351983896,1738867847431,-154.121061,0.00016849,2]
[351983898,1738867847440,-737.05,0.00016849,2]
[351983900,1738867847450,-610.49,0.00016849,2]
[351983902,1738867847460,-500.0,0.00016849,2]
[351983903,1738867847470,-500.0,0.00016849,2]
[351983905,1738867847479,-500.0,0.00016849,2]
[351983907,1738867847489,-500.0,0.00016849,2]
[351983909,1738867847499,-520.36,0.00016849,2]
[351983911,1738867847509,-697.56,0.00016849,2]
[351983913,1738867847519,-500.0,0.00016849,2]
[351983915,1738867847529,-500.0,0.00016849,2]
[351983918,1738867847540,-500.0,0.00016849,2]
[351983919,1738867847550,-500.0,0.00016849,2]
[351983922,1738867847560,-500.0,0.00016849,2]
[351983923,1738867847570,-500.0,0.00016849,2]
[351983926,1738867847580,-500.0,0.00016849,2]
[351983927,1738867847590,-500.0,0.00016849,2]
[351983930,1738867847599,-554.3,0.00016849,2]
[351983931,1738867847609,-500.0,0.00016849,2]
[351983933,1738867847619,-500.0,0.00016849,2]
[351983935,1738867847628,-500.0,0.00016849,2]
[351983938,1738867847638,-500.0,0.00016849,2]
[351983940,1738867847648,-807.7,0.00016849,2]
[351983941,1738867847659,-500.0,0.00016849,2]
[351983943,1738867847668,-500.0,0.00016849,2]
[351983945,1738867847678,-902.38,0.00016849,2]
[351983948,1738867847689,-500.0,0.00016849,2]
[351983950,1738867847698,-500.0,0.00016849,2]
[351983951,1738867847707,-500.0,0.00016849,2]
[351983953,1738867847717,-500.0,0.00016849,2]
[351983955,1738867847726,-543.18,0.00016849,2]
[351983957,1738867847736,-500.0,0.00016849,2]
[351983959,1738867847745,-500.0,0.00016849,2]
[351983961,1738867847755,-500.0,0.00016849,2]
[351983963,1738867847764,-500.0,0.00016849,2]
[351983965,1738867847775,-572.5,0.00016849,2]
[351983967,1738867847784,-500.0,0.00016849,2]
[351983969,1738867847793,-500.0,0.00016849,2]
[351983971,1738867847803,-500.0,0.00016849,2]
[351983973,1738867847812,-500.0,0.00016849,2]
[351983975,1738867847822,-500.0,0.00016849,2]
[351983977,1738867847833,-847.5,0.00016849,2]
[351983979,1738867847843,-672.14,0.00016849,2]
[351983981,1738867847853,-500.0,0.00016849,2]
[351983982,1738867847863,-500.0,0.00016849,2]
[351983985,1738867847874,-500.0,0.00016849,2]
[351983987,1738867847885,-500.0,0.00016849,2]
[351983989,1738867847897,-500.0,0.00016849,2]
[351983990,1738867847907,-500.0,0.00016849,2]
[351983992,1738867847918,-500.0,0.00016849,2]
[351983994,1738867847929,-500.0,0.00016849,2]
[351983996,1738867847940,-500.0,0.00016849,2]
[351983998,1738867847951,-500.0,0.00016849,2]
[351984000,1738867847962,-826.95,0.00016849,2]
[351984002,1738867847974,-500.0,0.00016849,2]
[351984005,1738867847985,-908.0,0.00016849,2]
[351984007,1738867847996,-500.0,0.00016849,2]
[351984008,1738867848006,-500.0,0.00016849,2]
[351984010,1738867848016,-382.07944154,0.00016849,2]
[351984012,1738867848028,-500.0,0.00016849,2]
[351984014,1738867848038,-500.0,0.00016849,2]
[351984016,1738867848047,-500.0,0.00016849,2]
[351984018,1738867848058,-904.4,0.00016849,2]
[351984020,1738867848070,-500.0,0.00016849,2]
[351984022,1738867848081,-722.65,0.00016849,2]
[351984024,1738867848092,-1878.89,0.00016849,2]
[351984026,1738867848102,-500.0,0.00016849,2]
[351984028,1738867848112,-559.38,0.00016849,2]
[351984030,1738867848125,-500.0,0.00016849,2]
[351984032,1738867848138,-653.5,0.00016849,2]
[351984034,1738867848149,-500.0,0.00016849,2]
[351984036,1738867848160,-647.68,0.00016849,2]
[351984038,1738867848171,-500.0,0.00016849,2]
[351984040,1738867848181,-500.0,0.00016849,2]
[351984041,1738867848191,-500.0,0.00016849,2]
[351984043,1738867848202,-500.0,0.00016849,2]
[351984045,1738867848215,-757.82,0.00016849,2]
[351984047,1738867848226,-500.0,0.00016849,2]
[351984049,1738867848237,-1035.74,0.00016849,2]
[351984051,1738867848248,-500.0,0.00016849,2]
[351984053,1738867848259,-500.0,0.00016849,2]
[351984055,1738867848270,-500.0,0.00016849,2]
[351984057,1738867848281,-1369.64,0.00016849,2]
[351984059,1738867848292,-500.0,0.00016849,2]
[351984061,1738867848303,-775.72,0.00016849,2]
[351984063,1738867848314,-736.48,0.00016849,2]
[351984065,1738867848324,-864.0,0.00016849,2]
[351984067,1738867848335,-500.0,0.00016849,2]
[351984069,1738867848346,-1197.28,0.00016849,2]
[351984071,1738867848356,-1135.81,0.00016849,2]
[351984073,1738867848367,-500.0,0.00016849,2]
[351984075,1738867848379,-500.0,0.00016849,2]
[351984077,1738867848389,-600.58,0.00016849,2]
[351984079,1738867848400,-526.09,0.00016849,2]
[351984081,1738867848411,-500.0,0.00016849,2]
[351984083,1738867848423,-500.0,0.00016849,2]
[351984085,1738867848433,-500.0,0.00016849,2]
[351984087,1738867848444,-567.42,0.00016849,2]
[351984089,1738867848456,-514.34,0.00016849,2]
[351984091,1738867848469,-690.39,0.00016849,2]
[351984093,1738867848481,-1146.91,0.00016849,2]
[351984095,1738867848491,-578.84,0.00016849,2]
[351984097,1738867848503,-500.0,0.00016849,2]
[351984099,1738867848515,-500.0,0.00016849,2]
[351984101,1738867848528,-901.34,0.00016849,2]
[351984103,1738867848540,-734.86,0.00016849,2]
[351984105,1738867848552,-767.8,0.00016849,2]
[351984107,1738867848564,-500.0,0.00016849,2]
[351984109,1738867848575,-500.0,0.00016849,2]
[351984111,1738867848587,-500.0,0.00016849,2]
[351984113,1738867848599,-500.0,0.00016849,2]
[351984115,1738867848610,-599.31,0.00016849,2]
[351984118,1738867848622,-706.15,0.00016849,2]